bitfinex-derivatives/quotes_BTCF0:USTF0_20240815
["timestamp","ask_amount","ask_price","bid_price","bid_amount"]
[1723745884254,0.77247278,57877.0,57876.0,0.19852772]
[1723745884550,0.77247278,57877.0,57865.0,0.3608]
[1723745884551,0.38783762,57873.0,57865.0,0.3608]
[1723745884750,0.41167278,57872.0,57865.0,0.3608]
[1723745884958,0.41167278,57871.0,57865.0,0.3608]
[1723745885158,0.29890349,57870.0,57869.0,0.08638]
[1723745885355,0.29890349,57870.0,57869.0,0.34718]
[1723745885652,0.32033358,57870.0,57869.0,1.07552517]
[1723745885857,0.16240083,57870.0,57869.0,1.12914517]
[1723745886053,0.20986475,57890.0,57871.0,0.086377]
[1723745886369,0.3608,57901.0,57881.0,1.068762]
[1723745886548,0.3608,57901.0,57900.0,0.086334]
[1723745886748,0.3608,57901.0,57900.0,0.328214]
[1723745887459,0.3608,57901.0,57900.0,0.33687027]
[1723745887847,0.3608,57901.0,57900.0,0.73687027]
[1723745888052,0.3608,57901.0,57900.0,0.33687027]
[1723745888449,0.3608,57908.0,57900.0,0.25053627]
[1723745888650,0.38783762,57906.0,57904.0,0.086328]
[1723745888953,0.38783762,57906.0,57900.0,0.33687027]
[1723745889153,0.38809676,57906.0,57900.0,0.33687027]
[1723745889348,0.38809676,57906.0,57901.0,0.086332]
[1723745889551,0.38783762,57901.0,57895.0,0.05157238]
[1723745889755,0.3608,57896.0,57895.0,0.08660014]
[1723745890050,0.3608,57902.0,57895.0,0.00025914]
[1723745890453,0.3608,57902.0,57899.0,0.086335]
[1723745890848,0.3608,57902.0,57900.0,0.086333]
[1723745891049,0.3608,57902.0,57900.0,0.09510677]
[1723745891249,0.3608,57902.0,57901.0,0.086332]
[1723745891960,0.3608,57902.0,57897.0,0.086337]
[1723745892259,0.3608,57902.0,57895.0,0.00025914]
[1723745892260,0.47417762,57896.0,57895.0,0.00025914]
[1723745892561,0.38783762,57896.0,57895.0,0.00025914]
[1723745893266,0.3608,57898.0,57895.0,0.08660014]
[1723745893462,0.09746636,57897.0,57895.0,0.00013294]
[1723745893653,0.08123339,57896.0,57895.0,0.08647394]
[1723745893850,0.08123339,57896.0,57895.0,0.00013294]
[1723745893851,0.3608,57896.0,57895.0,0.00013294]
[1723745894053,0.74863762,57896.0,57895.0,0.00013294]
[1723745894265,0.74963762,57896.0,57895.0,0.01113294]
[1723745894450,0.74963762,57896.0,57895.0,0.01106795]
[1723745895454,0.74963762,57896.0,57895.0,0.09740895]
[1723745895854,0.78472041,57896.0,57895.0,0.09740895]
[1723745896055,0.78472041,57896.0,57895.0,0.01106795]
[1723745896366,0.78472041,57896.0,57895.0,0.01206795]
[1723745896567,0.92429137,57896.0,57895.0,0.01206795]
[1723745896757,0.83795137,57896.0,57882.0,0.2418]
[1723745896952,0.3608,57886.0,57882.0,0.3918]
[1723745897151,0.03413779,57885.0,57882.0,0.3818]
[1723745897357,0.3608,57891.0,57882.0,0.3818]
[1723745897557,0.03458113,57890.0,57889.0,0.08635]
[1723745897861,0.38783762,57894.0,57889.0,0.4008]
[1723745898057,0.03556966,57893.0,57892.0,0.086346]
[1723745899766,0.03556966,57893.0,57892.0,0.447146]
[1723745899959,0.03656966,57893.0,57892.0,0.448146]
[1723745900157,0.03656966,57893.0,57892.0,0.087346]
[1723745900561,0.42440728,57893.0,57892.0,0.001]
[1723745900962,0.95242538,57893.0,57892.0,0.001]
[1723745901164,0.97871424,57893.0,57892.0,0.001]
[1723745901360,0.94565264,57893.0,57892.0,0.001]
[1723745901566,0.77762152,57893.0,57892.0,0.001]
[1723745901765,0.94565264,57893.0,57892.0,0.001]
[1723745901972,0.86396552,57893.0,57892.0,0.001]
[1723745902271,0.94566437,57893.0,57892.0,0.001]
[1723745902571,0.86396552,57893.0,57892.0,0.001]
[1723745902762,0.086355,57886.0,57884.0,0.00025914]
[1723745902968,0.74863762,57885.0,57884.0,0.00025914]
[1723745903868,0.81399162,57885.0,57884.0,0.00025914]
[1723745904062,0.74863762,57885.0,57884.0,0.00025914]
[1723745904461,0.90034448,57885.0,57884.0,0.00025914]
[1723745904677,0.7608,57885.0,57862.0,0.086389]
[1723745904872,0.086352,57889.0,57862.0,0.14]
[1723745904873,0.38783762,57866.0,57862.0,0.14]
[1723745905565,0.38783762,57863.0,57860.0,0.00022269]
[1723745905761,0.38783762,57861.0,57860.0,0.00022269]
[1723745906376,0.78804755,57861.0,57843.0,0.3608]
[1723745906566,0.78804755,57861.0,57842.0,0.00844499]
[1723745906567,0.06533258,57859.0,57858.0,0.00025914]
[1723745906773,0.06533258,57859.0,57841.0,0.24184]
[1723745906774,0.74863762,57859.0,57841.0,0.24868967]
[1723745906971,0.3608,57848.0,57842.0,0.08642]
[1723745907171,0.3608,57848.0,57844.0,0.086417]
[1723745907367,0.38783762,57842.0,57841.0,0.24184]
[1723745907779,0.74863762,57842.0,57841.0,0.24184]
[1723745907974,0.74878464,57842.0,57841.0,0.00856026]
[1723745908179,0.38798464,57842.0,57841.0,0.086422]
[1723745908475,0.21511007,57842.0,57841.0,0.21737868]
[1723745908774,0.21511007,57842.0,57841.0,0.13164661]
[1723745909169,0.21511007,57842.0,57841.0,0.086422]
[1723745910079,0.21611007,57842.0,57841.0,0.086422]
[1723745910678,0.00025914,57847.0,57846.0,0.086414]
[1723745910880,0.21522219,57847.0,57846.0,0.086414]
[1723745911078,0.21522219,57847.0,57842.0,0.08566467]
[1723745911277,0.00025914,57847.0,57845.0,0.05136143]
[1723745911471,0.086419,57843.0,57841.0,0.05136143]
[1723745911667,0.57583872,57842.0,57836.0,0.00025914]
[1723745911876,0.57576305,57837.0,57836.0,0.00025914]
[1723745912480,0.21496305,57837.0,57836.0,0.00025914]
[1723745913176,0.21596305,57837.0,57836.0,0.00025914]
[1723745913975,0.001,57837.0,57836.0,0.00025914]
[1723745914986,0.21596305,57837.0,57836.0,0.00025914]
[1723745915470,0.21496305,57837.0,57836.0,0.00025914]
[1723745915667,0.21496305,57837.0,57836.0,0.00125914]
[1723745915668,0.30239105,57837.0,57836.0,0.00125914]
[1723745915874,0.70239105,57837.0,57836.0,0.00125914]
[1723745916176,0.70239105,57837.0,57823.0,0.00013726]
[1723745916177,0.08643,57836.0,57823.0,0.00013726]
[1723745916368,0.3618,57837.0,57823.0,0.00013726]
[1723745916676,0.3618,57837.0,57823.0,0.00895526]
[1723745916882,0.3618,57837.0,57823.0,0.00013726]
[1723745917178,0.3608,57826.0,57823.0,0.00879446]
[1723745917381,0.3608,57826.0,57823.0,0.00013726]
[1723745917382,7.567e-05,57825.0,57823.0,0.00013726]
[1723745918184,7.567e-05,57825.0,57824.0,0.00025937]
[1723745919081,7.567e-05,57825.0,57824.0,0.08670637]
[1723745919274,7.567e-05,57825.0,57824.0,0.00025937]
[1723745919469,0.08652167,57825.0,57824.0,0.00025937]
[1723745919672,0.08652167,57825.0,57762.0,0.10230506]
[1723745919673,0.533832,57778.0,57762.0,0.10230506]
[1723745919976,0.3608,57769.0,57762.0,0.15]
[1723745920282,0.3608,57776.0,57767.0,0.05115264]
[1723745920484,0.3608,57770.0,57767.0,0.05115264]
[1723745920673,0.3608,57771.0,57769.0,0.0579297]
[1723745920979,0.3608,57771.0,57762.0,0.01542346]
[1723745920980,0.00020157,57770.0,57762.0,0.00849294]
[1723745921183,0.3608,57763.0,57758.0,0.00697445]
[1723745921573,0.3608,57763.0,57761.0,0.0579297]
[1723745921773,0.00020157,57770.0,57762.0,0.0579297]
[1723745921985,0.3608,57766.0,57758.0,0.00875628]
[1723745922177,0.3608,57766.0,57752.0,0.3608]
[1723745922378,0.3608,57766.0,57765.0,0.0579297]
[1723745922779,1.28016,57766.0,57752.0,0.3608]
[1723745922981,0.3608,57761.0,57758.0,0.0579297]
[1723745923179,0.3608,57761.0,57750.0,0.3608]
[1723745923385,0.3608,57766.0,57760.0,0.0579297]
[1723745923682,0.3608,57766.0,57758.0,0.0579297]
[1723745923683,0.3608,57761.0,57758.0,0.0579297]
[1723745923877,0.3608,57761.0,57752.0,0.0579297]
[1723745924078,0.3608,57755.0,57744.0,0.00850296]
[1723745924272,0.00013255,57760.0,57736.0,0.36184]
[1723745924273,0.3608,57746.0,57742.0,0.00671634]
[1723745924480,0.3608,57753.0,57743.0,0.0088161]
[1723745924687,0.3608,57753.0,57743.0,0.0001359]
[1723745924887,0.3608,57753.0,57743.0,0.00878757]
[1723745925086,0.3608,57753.0,57743.0,0.0001359]
[1723745925087,0.3608,57747.0,57743.0,0.0001359]
[1723745925384,0.3608,57747.0,57722.0,0.3608]
[1723745925385,0.086569,57743.0,57722.0,0.3608]
[1723745925589,0.3608,57728.0,57722.0,0.3608]
[1723745925778,0.3608,57728.0,57697.0,0.4501]
[1723745925779,0.808196,57725.0,57686.0,0.3608]
[1723745925974,0.3608,57698.0,57670.0,0.03016267]
[1723745926182,0.3608,57687.0,57670.0,0.03016267]
[1723745926380,0.00017448,57686.0,57670.0,0.03016267]
[1723745926590,0.3608,57677.0,57670.0,0.03016267]
[1723745926891,0.00017448,57686.0,57672.0,0.00682338]
[1723745927188,0.35082083,57695.0,57681.0,0.00107513]
[1723745927496,0.3608,57711.0,57694.0,0.7216]
[1723745927685,0.3608,57698.0,57688.0,0.3608]
[1723745927882,0.3608,57703.0,57688.0,0.3608]
[1723745928081,0.00017435,57702.0,57682.0,0.447459]
[1723745928281,0.00017435,57702.0,57692.0,0.00107513]
[1723745928483,0.36097435,57702.0,57692.0,0.00107513]
[1723745928677,0.3608,57696.0,57692.0,0.00107513]
[1723745928882,0.00017435,57702.0,57695.0,0.3608]
[1723745929088,0.00017435,57702.0,57692.0,0.00107513]
[1723745929089,0.00017435,57702.0,57701.0,0.086632]
[1723745929391,0.00025991,57709.0,57701.0,0.086632]
[1723745929392,0.00025991,57709.0,57708.0,0.086621]
[1723745929783,0.3608,57709.0,57701.0,0.00804973]
[1723745929986,0.3608,57709.0,57708.0,0.086621]
[1723745930182,0.3608,57716.0,57701.0,0.00107513]
[1723745930494,0.3608,57746.0,57738.0,0.086576]
[1723745930685,0.3608,57753.0,57738.0,0.086576]
[1723745930686,0.3608,57753.0,57738.0,0.00861918]
[1723745930889,0.3608,57747.0,57745.0,0.086565]
[1723745931390,0.3608,57759.0,57746.0,0.52059513]
[1723745931599,0.3608,57759.0,57753.0,0.086553]
[1723745932183,0.347313,57781.0,57753.0,0.086553]
[1723745932184,0.3608,57773.0,57754.0,0.3608]
[1723745932482,0.14526785,57772.0,57763.0,0.00107513]
[1723745932693,0.3608,57764.0,57763.0,0.00107513]
[1723745932882,0.3608,57764.0,57724.0,0.2608]
[1723745932883,0.086571,57742.0,57723.0,0.086598]
[1723745933084,0.3608,57724.0,57707.0,0.3608]
[1723745933283,0.3608,57719.0,57712.0,0.086615]
[1723745933491,0.3608,57719.0,57707.0,0.3608]
[1723745933687,0.3608,57719.0,57707.0,0.086621]
[1723745933898,0.3608,57719.0,57703.0,0.3608]
[1723745934093,0.3608,57724.0,57716.0,0.086609]
[1723745934094,0.3609815,57718.0,57716.0,0.086609]
[1723745934284,0.0001815,57718.0,57717.0,0.3608]
[1723745934482,0.78048839,57717.0,57704.0,0.25918594]
[1723745934688,0.78048839,57717.0,57674.0,0.086672]
[1723745934689,0.3608,57705.0,57683.0,0.00689216]
[1723745934885,0.3608,57691.0,57683.0,0.00689216]
[1723745935100,0.3608,57691.0,57686.0,0.36097139]
[1723745935592,0.3608,57691.0,57686.0,0.00017139]
[1723745935799,0.00018238,57690.0,57686.0,0.00017139]
[1723745936389,0.52022238,57690.0,57686.0,0.00017139]
[1723745936602,0.08665,57689.0,57686.0,0.00017139]
[1723745936783,0.3608,57687.0,57673.0,4e-05]
[1723745936981,0.25881397,57689.0,57673.0,4e-05]
[1723745936982,0.3608,57680.0,57673.0,4e-05]
[1723745937184,0.00018238,57690.0,57679.0,0.3608]
[1723745937412,0.3608,57702.0,57688.0,0.3608]
[1723745937588,0.3608,57696.0,57682.0,0.086659]
[1723745937785,0.00025989,57701.0,57690.0,0.3608]
[1723745937984,0.3608,57714.0,57697.0,0.3608]
[1723745938193,0.08166573,57797.0,57679.0,0.2608]
[1723745938194,0.3608,57704.0,57683.0,0.26073728]
[1723745938385,0.3608,57704.0,57680.0,0.62153728]
[1723745938386,0.3608,57698.0,57687.0,0.3608]
[1723745938583,0.7216,57688.0,57679.0,0.00702905]
[1723745938792,0.00016433,57687.0,57673.0,4e-05]
[1723745938995,0.00016433,57687.0,57675.0,0.086669]
[1723745939190,0.00016433,57687.0,57679.0,0.3608]
[1723745939397,0.00016433,57687.0,57682.0,0.086659]
[1723745939398,0.25851127,57686.0,57682.0,0.086659]
[1723745939802,0.00016433,57687.0,57679.0,0.3608]
[1723745939987,0.3608,57683.0,57681.0,0.086661]
[1723745940294,0.3608,57682.0,57673.0,4e-05]
[1723745940596,0.00116433,57687.0,57679.0,0.014]
[1723745940796,0.00116433,57687.0,57685.0,0.086655]
[1723745940994,0.00116433,57687.0,57686.0,0.3608]
[1723745941190,1e-08,57689.0,57686.0,1.43084]
[1723745941390,0.3608,57703.0,57701.0,0.086631]
[1723745941601,0.3608,57715.0,57696.0,0.3608]
[1723745941788,0.3608,57715.0,57706.0,0.3608]
[1723745941989,0.3608,57722.0,57717.0,0.086607]
[1723745942193,0.7216,57722.0,57706.0,0.3608]
[1723745942392,0.3608,57712.0,57706.0,0.3608]
[1723745942597,0.3608,57712.0,57701.0,0.3608]
[1723745942796,0.3608,57703.0,57689.0,0.3608]
[1723745942992,0.3608,57703.0,57686.0,0.24256]
[1723745942993,0.3608,57712.0,57711.0,0.086617]
[1723745943195,0.00025989,57720.0,57708.0,0.3608]
[1723745943398,0.00025989,57720.0,57703.0,3.77]
[1723745943399,0.00025989,57720.0,57718.0,0.086606]
[1723745943595,0.3608,57739.0,57730.0,0.086588]
[1723745943794,0.3608,57746.0,57730.0,1.28044]
[1723745943994,0.3608,57746.0,57736.0,0.086579]
[1723745943995,0.3608,57738.0,57736.0,0.086579]
[1723745944193,0.01709543,57745.0,57738.0,0.086576]
[1723745944394,0.08837784,57737.0,57721.0,0.329161]
[1723745944597,0.3608,57729.0,57721.0,0.24256]
[1723745944800,0.3608,57729.0,57721.0,0.32916]
[1723745945000,0.3608,57729.0,57721.0,0.24256]
[1723745945199,0.3608,57729.0,57721.0,0.329161]
[1723745945400,0.3608,57723.0,57709.0,0.3608]
[1723745945611,0.3608,57712.0,57704.0,0.36093133]
[1723745945903,0.3608,57712.0,57706.0,0.086623]
[1723745946099,0.3608,57712.0,57704.0,0.00013133]
[1723745946295,0.00025989,57735.0,57711.0,0.3608]
[1723745946296,0.3608,57731.0,57711.0,0.3608]
[1723745946499,0.3608,57744.0,57728.0,0.3608]
[1723745946710,0.3608,57744.0,57742.0,0.08657]
[1723745946899,0.3608,57754.0,57748.0,0.086561]
[1723745946900,0.3608,57749.0,57748.0,0.086561]
[1723745947095,0.3608,57759.0,57740.0,0.3608]
[1723745947295,0.3608,57759.0,57752.0,0.3608]
[1723745947496,0.3608,57759.0,57757.0,0.086547]
[1723745947696,0.3608,57775.0,57765.0,0.086535]
[1723745947909,0.0259544,57779.0,57759.0,0.3608]
[1723745948210,0.0259544,57779.0,57764.0,0.3608]
[1723745948398,0.3608,57777.0,57764.0,0.3608]
[1723745948805,0.3608,57777.0,57759.0,0.36925662]
[1723745948806,0.00025989,57761.0,57760.0,0.086543]
[1723745948999,0.00025989,57761.0,57758.0,0.24256]
[1723745949603,0.3608,57770.0,57757.0,0.3608]
[1723745949822,0.3608,57770.0,57761.0,0.086542]
[1723745950206,0.3608,57770.0,57752.0,0.00025989]
[1723745950207,0.3608,57762.0,57752.0,0.00025989]
[1723745950402,0.3608,57753.0,57752.0,0.00025989]
[1723745950603,0.3608,57753.0,57752.0,1e-08]
[1723745951013,1.28024,57753.0,57752.0,1e-08]
[1723745951507,1.28024,57753.0,57731.0,0.3608]
[1723745951508,0.51948,57752.0,57731.0,0.3608]
[1723745951697,0.3608,57732.0,57727.0,0.24248]
[1723745952103,0.3608,57738.0,57727.0,0.24248]
[1723745952506,0.3608,57738.0,57716.0,0.00850676]
[1723745952507,0.3608,57728.0,57711.0,0.05115264]
[1723745952709,0.3608,57713.0,57707.0,0.36094467]
[1723745952902,0.00016528,57712.0,57707.0,0.36094467]
[1723745953505,0.3608,57723.0,57721.0,0.086601]
[1723745953704,0.3608,57723.0,57708.0,0.78010343]
[1723745953705,0.3608,57723.0,57715.0,0.3608]
[1723745953896,0.3608,57723.0,57721.0,0.086601]
[1723745954099,0.3608,57724.0,57711.0,0.27426343]
[1723745954297,0.3608,57713.0,57711.0,0.014]
[1723745954603,0.3608,57713.0,57707.0,0.37494467]
[1723745954798,0.3608,57716.0,57707.0,0.37494467]
[1723745955002,0.3608,57711.0,57707.0,0.01414467]
[1723745955202,0.086618,57710.0,57707.0,0.01414467]
[1723745955408,0.36094467,57709.0,57693.0,0.3608]
[1723745955705,0.3608,57700.0,57672.0,0.08525422]
[1723745955911,0.3608,57700.0,57658.0,0.22310275]
[1723745955912,0.3608,57618.0,57604.0,0.0254165]
[1723745956100,0.3608,57618.0,57580.0,0.0181078]
[1723745956101,0.7216,57605.0,57603.0,0.01596173]
[1723745956300,0.3608,57616.0,57604.0,0.8816]
[1723745956500,0.36094467,57605.0,57603.0,0.01596173]
[1723745956700,0.00014467,57605.0,57603.0,0.01596173]
[1723745956901,0.3608,57619.0,57604.0,0.5208]
[1723745957112,0.3608,57623.0,57604.0,0.5208]
[1723745957113,0.3608,57623.0,57617.0,0.3608]
[1723745957330,0.086758,57617.0,57613.0,0.00026037]
[1723745957606,0.00026037,57616.0,57613.0,0.00026037]
[1723745957803,0.00026037,57616.0,57613.0,0.88174037]
[1723745957997,0.00026037,57616.0,57614.0,0.24264]
[1723745958200,0.00026037,57616.0,57613.0,0.88178037]
[1723745958201,0.00026037,57616.0,57613.0,0.00026037]
[1723745958400,0.3608,57614.0,57613.0,0.00026037]
[1723745958600,0.7216,57614.0,57613.0,0.0001157]
[1723745958808,0.7216,57614.0,57603.0,0.01596173]
[1723745958809,0.3608,57614.0,57607.0,0.24264]
[1723745959013,0.001,57605.0,57603.0,0.01665173]
[1723745959207,0.3608,57604.0,57603.0,0.01665173]
[1723745959606,0.001,57605.0,57603.0,3.78665173]
[1723745959813,0.3608,57607.0,57603.0,3.78565173]
[1723745960108,0.3608,57612.0,57603.0,3.78565173]
[1723745960312,0.3608,57612.0,57604.0,0.3608]
[1723745960613,0.3608,57612.0,57603.0,0.01565173]
[1723745960813,0.00026037,57616.0,57611.0,0.3608]
[1723745961016,0.3608,57638.0,57613.0,0.3608]
[1723745961314,0.4008544,57682.0,57643.0,0.086717]
[1723745961315,0.3608,57659.0,57643.0,0.086717]
[1723745961609,0.3608,57659.0,57650.0,0.3608]
[1723745961907,0.3608,57664.0,57650.0,0.3608]
[1723745962907,0.3608,57664.0,57641.0,0.24276]
[1723745962908,0.3608,57663.0,57659.0,0.086694]
[1723745963103,0.3608,57663.0,57647.0,0.3608]
[1723745963299,0.3608,57657.0,57650.0,0.014]
[1723745963501,0.00026013,57660.0,57650.0,0.014]
[1723745963707,0.00026013,57660.0,57657.0,0.086697]
[1723745964104,0.00026013,57660.0,57659.0,0.009]
[1723745964300,0.96803313,57660.0,57659.0,0.00873963]
[1723745964607,0.62276067,57660.0,57659.0,0.00873963]
[1723745965109,0.36106013,57660.0,57659.0,0.00873963]
[1723745965410,0.36045648,57660.0,57659.0,0.00873963]
[1723745966024,0.36045648,57660.0,57659.0,6.3e-07]
[1723745966025,1.71459083,57660.0,57659.0,6.3e-07]
[1723745966308,0.086723,57641.0,57622.0,0.3608]
[1723745966509,0.3608,57635.0,57622.0,0.3608]
[1723745967008,0.3608,57631.0,57622.0,0.3608]
[1723745967209,0.447547,57625.0,57621.0,0.00021743]
[1723745967515,0.3608,57622.0,57621.0,0.00021743]
[1723745967816,0.086761,57616.0,57603.0,0.01565173]
[1723745968004,0.3608,57608.0,57603.0,0.01565173]
[1723745968199,0.26071269,57615.0,57607.0,0.3608]
[1723745968409,0.3608,57617.0,57603.0,0.01565173]
[1723745968608,0.00288247,57616.0,57603.0,0.01565173]
[1723745968809,0.34747569,57614.0,57603.0,0.01565173]
[1723745969011,0.34747569,57614.0,57604.0,0.00026037]
[1723745969312,0.3608,57608.0,57604.0,0.00026037]
[1723745969612,0.086775,57606.0,57604.0,0.00026037]
[1723745970005,0.78293854,57605.0,57604.0,0.00026037]
[1723745970309,0.78293854,57605.0,57603.0,0.01565173]
[1723745970310,0.173556,57604.0,57603.0,1e-07]
[1723745970505,1.094356,57604.0,57603.0,1e-07]
[1723745970715,1.26723994,57604.0,57603.0,1e-07]
[1723745971008,1.18046194,57604.0,57584.0,0.00021352]
[1723745971210,0.3608,57596.0,57589.0,0.086799]
[1723745971402,0.3608,57590.0,57584.0,0.00021352]
[1723745971604,0.26058758,57595.0,57587.0,0.3608]
[1723745971813,0.3749,57632.0,57594.0,0.3608]
[1723745971814,0.001,57606.0,57594.0,0.3608]
[1723745972006,0.3608,57622.0,57605.0,0.3608]
[1723745972207,0.086704,57653.0,57618.0,0.086755]
[1723745972208,0.25874934,57620.0,57618.0,0.086755]
[1723745972415,0.3608,57633.0,57618.0,0.086755]
[1723745972604,0.3608,57633.0,57594.0,0.65983579]
[1723745972605,0.3608,57619.0,57603.0,0.3608]
[1723745972805,0.3608,57619.0,57608.0,0.3608]
[1723745972806,0.60237757,57619.0,57608.0,0.3608]
[1723745973004,0.3608,57621.0,57609.0,3.77]
[1723745973202,0.3608,57629.0,57618.0,0.447556]
[1723745973403,0.62279918,57629.0,57626.0,0.086744]
[1723745973608,0.00026037,57631.0,57627.0,0.5206]
[1723745973810,0.3608,57645.0,57635.0,0.08673]
[1723745974114,0.10849943,57644.0,57642.0,0.3608]
[1723745974308,0.10849943,57644.0,57642.0,0.44752]
[1723745974505,0.3867544,57658.0,57643.0,0.52044]
[1723745974709,0.3867544,57658.0,57647.0,0.3608]
[1723745974906,0.3867544,57658.0,57654.0,0.086702]
[1723745974907,0.26027525,57656.0,57654.0,0.086702]
[1723745975104,0.3867544,57658.0,57657.0,0.086698]
[1723745975309,0.3867544,57658.0,57657.0,0.486698]
[1723745975509,0.3608,57665.0,57662.0,0.086689]
[1723745975702,0.3608,57673.0,57657.0,0.92032]
[1723745975703,0.3608,57673.0,57661.0,0.447491]
[1723745975907,0.3608,57673.0,57671.0,0.086676]
[1723745976205,0.0259544,57682.0,57671.0,0.3608]
[1723745976411,0.0259544,57682.0,57671.0,0.5008]
[1723745976603,0.0259544,57682.0,57671.0,0.3608]
[1723745976805,0.3867544,57682.0,57671.0,0.3608]
[1723745977000,0.7216,57673.0,57657.0,0.3608]
[1723745977205,0.086733,57634.0,57611.0,0.3608]
[1723745977401,0.3608,57647.0,57633.0,0.3608]
[1723745977605,0.3608,57655.0,57633.0,0.3608]
[1723745977801,0.00270884,57646.0,57640.0,0.3608]
[1723745978016,0.3608,57650.0,57633.0,0.3608]
[1723745978212,0.3608,57645.0,57638.0,0.3608]
[1723745978514,0.11149004,57645.0,57644.0,0.086717]
[1723745978813,0.3608,57662.0,57643.0,0.3608]
[1723745979013,0.0269544,57682.0,57643.0,0.3608]
[1723745979014,0.3608,57673.0,57661.0,0.3608]
[1723745979519,0.26068097,57681.0,57672.0,0.447475]
[1723745979712,0.26068097,57672.0,57667.0,0.3608]
[1723745979918,0.0259544,57682.0,57667.0,0.3608]
[1723745979919,0.3608,57675.0,57667.0,0.3608]
[1723745980306,0.3608,57670.0,57654.0,0.3608]
[1723745980612,0.3608,57670.0,57632.0,0.02604]
[1723745980613,0.3608,57663.0,57644.0,0.3608]
[1723745980807,0.3608,57657.0,57644.0,0.3608]
[1723745981010,0.26011249,57662.0,57649.0,0.3608]
[1723745981313,0.08986603,57656.0,57652.0,0.086705]
[1723745981516,0.3608,57670.0,57657.0,0.086697]
[1723745981713,0.3608,57670.0,57661.0,0.007]
[1723745981915,0.25917856,57669.0,57661.0,0.007]
[1723745982216,0.173414,57651.0,57650.0,1.4e-07]
[1723745982515,0.81141246,57651.0,57612.0,0.3608]
[1723745982708,0.086744,57626.0,57612.0,0.3608]
[1723745982907,0.3609733,57626.0,57612.0,0.3608]
[1723745983114,0.086746,57625.0,57612.0,0.3608]
[1723745983416,0.086763,57614.0,57612.0,0.3608]
[1723745983617,0.26001448,57624.0,57613.0,0.086763]
[1723745983919,0.086716,57646.0,57613.0,0.086763]
[1723745983920,0.3608,57643.0,57623.0,0.3608]
[1723745984118,0.3608,57643.0,57635.0,0.3608]
[1723745984307,0.3608,57652.0,57639.0,0.086725]
[1723745984308,0.25969914,57645.0,57639.0,0.086725]
[1723745984511,0.62049914,57645.0,57635.0,0.3608]
[1723745984714,0.3608,57652.0,57641.0,0.3608]
[1723745985020,0.3608,57657.0,57655.0,0.0867]
[1723745985212,4.819e-05,57656.0,57646.0,0.3608]
[1723745985412,4.819e-05,57656.0,57651.0,0.3608]
[1723745985620,0.2606413,57655.0,57646.0,0.3608]
[1723745986016,0.2606413,57655.0,57647.0,0.086712]
[1723745986313,0.2606413,57655.0,57635.0,0.001]
[1723745986314,0.2606413,57655.0,57651.0,0.3608]
[1723745986515,0.2606413,57655.0,57650.0,0.00012684]
[1723745986716,0.2606413,57655.0,57653.0,0.447503]
[1723745986917,0.2606413,57655.0,57650.0,0.00012684]
[1723745987412,0.00026014,57662.0,57654.0,0.3608]
[1723745987612,0.00026014,57662.0,57661.0,0.3608]
[1723745987812,0.3608,57678.0,57661.0,0.7608]
[1723745988112,0.3608,57678.0,57672.0,0.447475]
[1723745988315,0.3608,57678.0,57672.0,0.3608]
[1723745990126,0.009,57678.0,57677.0,0.3608]
[1723745990313,0.009,57678.0,57672.0,0.88096]
[1723745990314,0.009,57678.0,57672.0,0.3608]
[1723745991119,0.3608,57701.0,57677.0,0.3608]
[1723745991322,0.3608,57696.0,57677.0,0.3608]
[1723745991520,0.3608,57696.0,57680.0,0.3608]
[1723745991711,0.08664,57696.0,57680.0,0.3608]
[1723745991914,0.3608,57701.0,57686.0,0.3608]
[1723745992114,0.25872929,57695.0,57686.0,0.3608]
[1723745992311,0.25872929,57700.0,57680.0,0.3608]
[1723745992513,0.3608,57701.0,57681.0,0.086662]
[1723745992718,0.25872929,57694.0,57680.0,0.3608]
[1723745992924,0.25872929,57694.0,57651.0,0.06772427]
[1723745992925,0.3608,57661.0,57651.0,0.06772427]
[1723745993127,0.3608,57652.0,57625.0,0.06838011]
[1723745993423,0.3608,57640.0,57625.0,0.06838011]
[1723745993722,0.086732,57635.0,57619.0,0.3608]
[1723745993927,0.06060334,57639.0,57619.0,0.5308]
[1723745994227,0.0001423,57638.0,57631.0,0.3608]
[1723745994421,0.0001423,57638.0,57636.0,0.086729]
[1723745994620,0.0001423,57638.0,57636.0,0.447528]
[1723745994831,0.3608,57656.0,57637.0,0.52048]
[1723745995119,0.26153046,57649.0,57636.0,0.3608]
[1723745995424,0.3608,57651.0,57643.0,0.086718]
[1723745995617,0.3608,57656.0,57641.0,0.3608]
[1723745995814,0.3608,57656.0,57636.0,0.3608]
[1723745995815,0.00026014,57643.0,57636.0,0.3608]
[1723745996013,0.00026014,57643.0,57642.0,0.08672]
[1723745996213,0.3608,57664.0,57642.0,0.5308]
[1723745996418,0.3608,57664.0,57653.0,0.086703]
[1723745996626,0.25857614,57662.0,57653.0,0.086703]
[1723745996829,0.25857614,57662.0,57655.0,0.086701]
[1723745997019,0.3608,57670.0,57648.0,0.3608]
[1723745997219,0.2618056,57661.0,57648.0,0.5108]
[1723745997420,0.2618056,57661.0,57648.0,0.3608]
[1723745997615,0.3608,57652.0,57647.0,0.24288]
[1723745997819,0.3608,57648.0,57641.0,0.003]
[1723745998125,0.3608,57642.0,57641.0,0.003]
[1723745998522,0.62262444,57642.0,57625.0,0.086746]
[1723745998824,0.62262444,57642.0,57616.0,0.08472698]
[1723745998825,0.3608,57626.0,57616.0,0.08472698]
[1723745999031,0.3608,57617.0,57616.0,0.08472698]
[1723745999336,0.3608,57617.0,57602.0,0.3608]
[1723745999625,0.3608,57620.0,57609.0,0.3608]
[1723745999828,0.3608,57620.0,57615.0,0.00026014]
[1723746000234,0.3608,57620.0,57615.0,0.08702114]
[1723746000725,0.3608,57631.0,57616.0,0.086759]
[1723746000922,0.086761,57615.0,57603.0,0.05128915]
[1723746001128,0.7216,57604.0,57592.0,0.3608]
[1723746001527,0.3608,57610.0,57599.0,0.086784]
[1723746001729,0.3608,57610.0,57592.0,0.3608]
[1723746002029,0.17326784,57609.0,57603.0,0.086778]